bitfinex-derivatives/quotes_SOLF0:USTF0_20240913
["timestamp","ask_amount","ask_price","bid_price","bid_amount"]
[1726250923432,12.5839,137.65,137.61,14.8123]
[1726250923926,12.5839,137.65,137.61,3.6323]
[1726250924127,11.18,137.64,137.61,3.6323]
[1726250925531,11.18,137.64,137.62,3.6322]
[1726250927524,11.18,137.65,137.61,11.18]
[1726250928130,11.18,137.65,137.62,3.6322]
[1726250928332,11.18,137.65,137.61,11.18]
[1726250928728,11.18,137.65,137.62,3.6321]
[1726250929331,11.18,137.64,137.62,3.6321]
[1726250931437,3.57715268,137.67,137.61,11.18]
[1726250931642,11.18,137.67,137.62,11.18]
[1726250931938,11.18,137.67,137.61,11.18]
[1726250931939,11.18,137.66,137.61,11.18]
[1726250932126,2.6923,137.69,137.62,11.18]
[1726250932331,11.18,137.65,137.61,11.18]
[1726250932930,11.18,137.65,137.62,3.6321]
[1726250933527,11.18,137.65,137.63,3.6319]
[1726250934633,11.18,137.66,137.63,3.6319]
[1726250936031,3.67794272,137.67,137.63,3.6319]
[1726250936232,6.3228,137.69,137.63,3.6319]
[1726250936434,11.18,137.67,137.64,3.6316]
[1726250936732,15.36289836,137.73,137.64,11.18]
[1726250936930,15.36289836,137.73,137.61,7.68675]
[1726250936931,11.18,137.69,137.65,14.8113]
[1726250937136,11.18,137.68,137.63,11.18]
[1726250938542,11.18,137.68,137.64,11.18]
[1726250938736,11.18,137.68,137.66,3.631]
[1726250938943,11.18,137.69,137.66,3.631]
[1726250940339,3.6299,137.71,137.65,3.6314]
[1726250940340,11.18,137.68,137.65,3.6314]
[1726250940538,11.18,137.68,137.64,11.18]
[1726250940740,3.6299,137.71,137.66,3.631]
[1726250940933,11.18,137.69,137.66,3.631]
[1726250941834,15.36568171,137.72,137.65,11.18]
[1726250942036,11.18,137.69,137.63,3.59215]
[1726250942231,11.18,137.68,137.65,3.6313]
[1726250944144,11.18,137.68,137.66,5.81]
[1726250945244,11.18,137.67,137.66,5.81]
[1726250946642,11.18,137.68,137.66,9.4411]
[1726250946846,11.18,137.69,137.66,9.4411]
[1726250947441,2.7187,137.73,137.66,5.81]
[1726250947643,11.18,137.7,137.66,5.81]
[1726250947844,11.18,137.7,137.67,3.6308]
[1726250948546,11.18,137.69,137.67,3.6308]
[1726250949353,11.18,137.69,137.66,5.81]
[1726250949651,3.6060864,137.74,137.68,11.18]
[1726250949841,11.18,137.72,137.69,3.6302]
[1726250950043,11.18,137.71,137.67,11.18]
[1726250950342,3.5960396,137.74,137.7,3.63]
[1726250950543,11.18,137.73,137.68,11.18]
[1726250950742,3.58187195,137.75,137.69,11.18]
[1726250950946,11.18,137.73,137.69,11.18]
[1726250951142,4.90882542,137.77,137.69,11.18]
[1726250951346,1.3077,137.77,137.69,11.18]
[1726250951544,11.18,137.74,137.69,11.18]
[1726250951749,11.18,137.74,137.71,3.6297]
[1726250952149,3.5637083,137.75,137.7,11.18]
[1726250952347,11.18,137.74,137.7,11.18]
[1726250952854,11.18,137.74,137.68,3.59215]
[1726250952855,11.18,137.73,137.71,3.6297]
[1726250953058,1.3077,137.77,137.71,3.6297]
[1726250953059,11.18,137.74,137.71,11.18]
[1726250953268,11.18,137.73,137.69,11.18]
[1726250953460,11.18,137.73,137.7,3.63]
[1726250953746,3.67534628,137.75,137.7,3.63]
[1726250953951,11.18,137.73,137.7,3.63]
[1726250954149,3.67534628,137.75,137.71,3.6298]
[1726250954356,11.18,137.74,137.69,11.18]
[1726250954747,11.18,137.73,137.7,3.6299]
[1726250955045,11.18,137.73,137.69,11.18]
[1726250955247,11.18,137.72,137.67,7.75075]
[1726250955448,11.18,137.72,137.68,11.18]
[1726250955645,11.18,137.69,137.67,1.3778]
[1726250956055,3.71638573,137.73,137.67,12.5578]
[1726250956259,11.18,137.71,137.67,12.5578]
[1726250956553,11.18,137.7,137.68,3.6306]
[1726250957258,11.18,137.7,137.67,5.0086]
[1726250957752,11.18,137.69,137.67,5.0086]
[1726250957943,11.18,137.7,137.67,5.0086]
[1726250958546,11.18,137.7,137.68,3.6306]
[1726250959057,11.18,137.7,137.69,3.6304]
[1726250959845,11.18,137.7,137.68,3.6305]
[1726250960051,11.18,137.7,137.67,1.3778]
[1726250960450,11.18,137.69,137.67,1.3778]
[1726250960658,11.18,137.68,137.66,5.81]
[1726250961048,11.18,137.67,137.66,5.81]
[1726250961254,11.18,137.67,137.59,3.59215]
[1726250961459,11.18,137.6,137.56,18.87485]
[1726250962160,11.18,137.63,137.58,11.18]
[1726250962346,11.18,137.64,137.62,3.6321]
[1726250963656,11.18,137.64,137.61,3.6324]
[1726250963857,11.18,137.63,137.59,11.18]
[1726250964054,11.18,137.62,137.56,7.69485]
[1726250964253,17.45,137.63,137.59,3.6329]
[1726250964450,17.45,137.63,137.56,7.69485]
[1726250964848,17.45,137.62,137.58,3.6332]
[1726250965048,17.45,137.62,137.56,7.69485]
[1726250965049,17.45,137.62,137.56,4.1027]
[1726250965758,17.45,137.62,137.56,3.6336]
[1726250966054,17.45,137.6,137.56,3.6336]
[1726250966262,17.45,137.6,137.53,3.59215]
[1726250966458,17.45,137.6,137.56,3.6336]
[1726250967359,17.45,137.6,137.57,3.6335]
[1726250968058,17.45,137.6,137.56,3.6337]
[1726250970859,17.45,137.6,137.57,3.6335]
[1726250971064,17.45,137.62,137.53,21.04215]
[1726250971357,17.45,137.62,137.54,4.1412]
[1726250971867,17.45,137.62,137.57,3.6334]
[1726250972460,21.0824,137.62,137.54,4.1412]
[1726250973168,21.0824,137.62,137.56,3.6337]
[1726250973363,17.45,137.6,137.54,4.1412]
[1726250973555,17.45,137.58,137.54,4.1412]
[1726250973759,17.45,137.58,137.52,3.59215]
[1726250974268,17.45,137.58,137.54,3.6341]
[1726250974963,17.45,137.58,137.55,3.6341]
[1726250975172,17.45,137.58,137.51,3.59215]
[1726250975370,17.45,137.58,137.5,1080.72167]
[1726250975670,17.45,137.58,137.53,3.6345]
[1726250976163,17.45,137.56,137.53,3.6345]
[1726250977566,17.45,137.56,137.52,3.6347]
[1726250977874,17.45,137.54,137.5,1059.67952]
[1726250978063,17.45,137.54,137.5,1063.31472]
[1726250978466,17.45,137.54,137.5,1059.67952]
[1726250978761,17.45,137.54,137.51,3.635]
[1726250979174,17.45,137.53,137.5,1059.67952]
[1726250979473,17.45,137.53,137.5,1063.31482]
[1726250979664,17.45,137.53,137.5,1059.67952]
[1726250980867,17.45,137.53,137.51,3.635]
[1726250981571,17.45,137.56,137.5,1059.67952]
[1726250981960,17.45,137.58,137.5,1077.12952]
[1726250982164,17.45,137.58,137.5,1080.72167]
[1726250983364,17.45,137.58,137.51,1.3811]
[1726250983773,17.45,137.66,137.57,17.45]
[1726250983964,21.09905772,137.66,137.57,17.45]
[1726250984473,17.45,137.65,137.57,21.04215]
[1726250985066,17.45,137.65,137.61,3.6323]
[1726250985677,17.45,137.65,137.56,17.45]
[1726250985875,17.45,137.63,137.54,21.04215]
[1726250986370,17.45,137.63,137.58,3.6331]
[1726250987769,17.45,137.63,137.54,17.45]
[1726250987968,17.45,137.63,137.54,21.07884]
[1726250988168,17.45,137.63,137.54,21.0415]
[1726250988573,17.45,137.63,137.59,3.6328]
[1726250988772,17.45,137.63,137.54,21.0415]
[1726250988973,17.45,137.63,137.56,17.45]
[1726250989376,17.45,137.65,137.57,17.45]
[1726250989569,17.45,137.65,137.57,21.0415]
[1726250989773,17.45,137.65,137.57,21.3315]
[1726250992071,17.45,137.63,137.57,0.29]
[1726250992268,17.45,137.62,137.57,0.29]
[1726250992778,17.45,137.62,137.6,3.6326]
[1726250993474,17.45,137.63,137.6,3.6326]
[1726250994381,17.45,137.63,137.59,3.6329]
[1726250995084,9.85142104,137.67,137.61,3.6323]
[1726250995385,17.45,137.64,137.61,3.6323]
[1726250996574,17.45,137.64,137.57,0.29]
[1726250997280,17.45,137.64,137.59,3.633]
[1726251000284,21.0817,137.64,137.59,3.633]
[1726251000981,17.45,137.64,137.59,3.633]
[1726251001380,17.45,137.64,137.6,3.6327]
[1726251002385,17.45,137.64,137.61,3.6323]
[1726251002579,17.45,137.64,137.57,0.29]
[1726251002777,17.45,137.62,137.57,0.29]
[1726251002983,17.45,137.64,137.57,0.29]
[1726251003280,23.67032104,137.67,137.57,0.29]
[1726251003281,20.1116,137.67,137.57,0.29]
[1726251003478,20.1116,137.67,137.62,3.6321]
[1726251003680,17.45,137.66,137.58,3.5915]
[1726251003996,17.45,137.66,137.61,3.6323]
[1726251004285,17.45,137.66,137.58,3.5915]
[1726251004589,17.45,137.66,137.57,22.7322]
[1726251004884,17.45,137.64,137.57,1.6907]
[1726251005385,17.45,137.64,137.6,3.6326]
[1726251005576,17.45,137.64,137.57,1.6907]
[1726251005777,17.45,137.64,137.59,3.6329]
[1726251005978,17.45,137.62,137.57,0.29]
[1726251006787,17.45,137.62,137.58,3.6331]
[1726251007280,17.45,137.62,137.57,0.29]
[1726251007883,17.45,137.62,137.59,3.6329]
[1726251008992,17.45,137.62,137.57,0.29]
[1726251009393,17.45,137.62,137.58,3.6331]
[1726251010891,17.45,137.62,137.57,0.29]
[1726251011690,17.45,137.62,137.58,3.6333]
[1726251013002,17.45,137.62,137.57,3.6335]
[1726251015279,17.45,137.62,137.53,1.3689]
[1726251015280,17.45,137.61,137.53,1.3689]
[1726251015596,17.45,137.55,137.5,1059.67952]
[1726251015783,17.45,137.55,137.51,3.635]
[1726251016189,11.18,137.53,137.5,1059.67952]
[1726251017195,11.18,137.53,137.52,3.6349]
[1726251018198,17.47,137.55,137.5,1059.67952]
[1726251018397,17.47,137.53,137.5,1059.67952]
[1726251018697,17.47,137.53,137.5,1059.96952]
[1726251019293,17.47,137.53,137.5,0.29]
[1726251020296,17.47,137.51,137.5,0.29]
[1726251020498,2.7662,137.54,137.5,0.29]
[1726251020697,20.2937,137.59,137.51,17.47]
[1726251021205,20.2937,137.59,137.57,3.6336]
[1726251021405,17.47,137.63,137.54,17.47]
[1726251021800,17.47,137.63,137.54,21.0615]
[1726251021996,21.102,137.63,137.54,21.0615]
[1726251022202,17.47,137.63,137.54,21.0615]
[1726251022402,17.47,137.61,137.53,17.47]
[1726251022706,17.47,137.61,137.56,3.6337]
[1726251025004,17.47,137.63,137.54,17.47]
[1726251025404,17.47,137.64,137.54,17.47]
[1726251025718,17.47,137.64,137.58,3.6332]
[1726251025907,17.47,137.64,137.56,17.47]
[1726251026503,21.1017,137.64,137.58,3.6331]
[1726251027311,17.47,137.63,137.58,3.6331]
[1726251028911,17.47,137.61,137.57,3.6334]
[1726251029417,17.47,137.61,137.53,17.47]
[1726251029806,17.47,137.63,137.54,17.47]
[1726251030010,17.47,137.64,137.6,3.6326]
[1726251031622,17.47,137.64,137.59,3.6329]
[1726251032019,17.47,137.62,137.55,21.0615]
[1726251032218,17.47,137.61,137.52,3.5915]
[1726251032419,20.3405,137.61,137.53,17.47]
[1726251032814,20.3405,137.61,137.53,21.0615]
[1726251033215,20.3405,137.61,137.53,17.47]
[1726251033828,20.3405,137.61,137.53,21.0615]
[1726251034019,20.3405,137.61,137.57,3.6333]
[1726251034415,2.8705,137.61,137.57,3.6333]
[1726251034620,2.8705,137.61,137.58,3.6333]
[1726251035724,2.8705,137.61,137.57,3.6335]
[1726251035929,20.3405,137.61,137.57,3.6335]
[1726251036227,20.3405,137.61,137.56,3.6337]
[1726251036728,23.973,137.61,137.56,3.6338]
[1726251037827,3.61703424,137.6,137.55,3.6339]
[1726251038222,17.47,137.59,137.55,3.6339]
[1726251040132,17.47,137.59,137.51,22.4711]
[1726251040532,17.47,137.57,137.53,3.6345]
[1726251040725,17.47,137.57,137.51,1.4096]
[1726251041229,17.47,137.57,137.54,3.6342]
[1726251041920,4.97543424,137.6,137.51,18.8796]
[1726251042119,22.44543424,137.6,137.51,18.8796]
[1726251042326,22.44543424,137.6,137.57,3.6335]
[1726251042527,22.44543424,137.6,137.53,17.47]
[1726251042528,3.71679605,137.6,137.53,17.47]
[1726251042920,20.3405,137.61,137.53,21.0615]
[1726251043120,20.3405,137.61,137.55,17.47]
[1726251043424,20.3405,137.61,137.58,3.6331]
[1726251043618,20.3405,137.61,137.55,17.47]
[1726251044235,20.3405,137.61,137.58,3.6332]
[1726251045335,20.3405,137.61,137.53,21.0615]
[1726251045723,3.63120846,137.6,137.53,21.0615]
[1726251046236,3.63120846,137.6,137.56,3.6337]
[1726251046834,3.63120846,137.6,137.51,1.4096]
[1726251046835,21.10120846,137.6,137.51,1.4096]
[1726251047223,17.47,137.58,137.51,1.4096]
[1726251047726,17.47,137.58,137.54,3.6342]
[1726251048635,17.47,137.58,137.55,3.634]
[1726251049227,3.65083661,137.59,137.54,3.6342]
[1726251049427,17.47,137.6,137.51,18.8796]
[1726251049834,17.47,137.58,137.51,1.4096]
[1726251050438,17.47,137.6,137.51,18.8796]
[1726251051128,21.15154119,137.6,137.51,18.8796]
[1726251052529,21.15154119,137.6,137.55,3.6338]
[1726251053437,17.47,137.58,137.51,5.0011]
[1726251053632,17.47,137.58,137.51,1.4096]
[1726251054031,17.47,137.58,137.53,3.6345]
[1726251054234,17.47,137.56,137.53,3.6345]
[1726251055135,17.47,137.56,137.51,1.4096]
[1726251055331,17.47,137.56,137.5,2.7495]
[1726251055530,17.47,137.56,137.52,3.6347]
[1726251055729,17.47,137.56,137.5,2.7495]
[1726251055935,17.47,137.56,137.49,3.5915]
[1726251056239,17.47,137.56,137.52,3.6349]
[1726251056940,17.47,137.54,137.52,3.6349]
[1726251057939,17.47,137.54,137.51,3.6351]
[1726251058528,17.47,137.52,137.46,6.4386]
[1726251058935,21.02435961,137.52,137.49,3.6355]
[1726251059138,21.02435961,137.52,137.44,115.37900596]
[1726251059639,17.47,137.49,137.43,1.3679]
[1726251060142,17.47,137.5,137.43,1.3679]
[1726251060343,17.47,137.53,137.45,17.47]
[1726251060526,18.9042,137.55,137.47,17.47]
[1726251060731,17.47,137.55,137.47,17.47]
[1726251060930,17.47,137.55,137.47,21.10042]
[1726251061242,17.47,137.58,137.52,3.6347]
[1726251061637,17.47,137.58,137.48,18.8062]
[1726251062339,17.47,137.56,137.51,3.6351]
[1726251062731,17.47,137.56,137.48,18.8062]
[1726251062933,17.47,137.58,137.48,18.8062]
[1726251063133,17.47,137.58,137.48,25.12262]
[1726251063334,17.47,137.58,137.53,3.6346]
[1726251063942,17.47,137.58,137.52,3.6348]
[1726251064141,17.47,137.58,137.48,25.12262]
[1726251064447,17.47,137.58,137.53,0.29]
[1726251066545,2.7337,137.59,137.53,0.29]
[1726251068042,2.7337,137.59,137.55,3.6339]
[1726251068848,2.7337,137.59,137.54,3.6342]
[1726251069049,20.2037,137.59,137.54,3.6342]
[1726251069346,17.47,137.57,137.53,0.29]
[1726251069560,17.47,137.54,137.53,0.29]
[1726251069743,17.47,137.54,137.48,1.3362]
[1726251070146,17.47,137.54,137.5,3.6353]
[1726251070849,17.47,137.52,137.44,2.7473]
[1726251071046,17.47,137.49,137.44,2.7473]
[1726251072140,17.47,137.49,137.44,1.4056]
[1726251072343,17.47,137.49,137.43,3.63042]
[1726251072549,17.47,137.51,137.43,3.63042]
[1726251072852,17.47,137.49,137.43,3.63042]
[1726251073349,17.47,137.49,137.42,5.03092]
[1726251073754,17.47,137.49,137.45,3.6366]
[1726251074556,17.47,137.49,137.44,3.6369]
[1726251074755,17.47,137.47,137.4,6.47912]
[1726251075359,17.47,137.47,137.43,3.637]
[1726251076150,17.47,137.47,137.42,3.6374]
[1726251076453,17.47,137.47,137.39,22.48042]
[1726251076655,17.47,137.47,137.42,3.6374]
[1726251076852,17.47,137.47,137.39,22.48042]
[1726251078053,17.47,137.47,137.42,3.6373]
[1726251078355,17.47,137.47,137.39,22.48042]
[1726251078554,17.47,137.47,137.43,3.6371]
[1726251078758,17.47,137.47,137.39,22.48042]
[1726251079458,17.47,137.47,137.43,3.6371]
[1726251081561,7.57041023,137.53,137.39,22.48042]
[1726251081562,17.47,137.52,137.39,22.48042]
[1726251081759,3.9892,137.53,137.44,17.47]
[1726251082069,7.6172961,137.53,137.44,17.47]
[1726251082360,3.9892,137.53,137.44,21.10042]
[1726251082863,3.62736852,137.52,137.46,3.6364]
[1726251083581,21.09736852,137.52,137.46,3.6364]
[1726251083948,24.73236852,137.52,137.45,3.6366]
[1726251084156,17.47,137.5,137.45,3.6366]
[1726251084453,17.47,137.5,137.43,3.63042]
[1726251084660,17.47,137.5,137.46,3.6363]
[1726251085062,17.47,137.5,137.43,3.63042]
[1726251086058,17.47,137.48,137.42,5.00132]
[1726251086260,17.47,137.47,137.42,5.00132]
[1726251086563,17.47,137.47,137.39,5.01042]
[1726251087259,17.47,137.47,137.43,3.6371]
[1726251088163,17.47,137.47,137.39,22.48042]
[1726251088665,17.47,137.47,137.43,3.637]
[1726251090464,17.47,137.47,137.44,3.6368]
[1726251091470,17.47,137.48,137.44,3.6368]
[1726251091663,17.47,137.5,137.41,21.10042]
[1726251091869,7.55139959,137.53,137.43,17.47]
[1726251092081,21.4592,137.53,137.48,3.6358]
[1726251092266,20.1174,137.53,137.45,17.47]
[1726251092463,20.1174,137.53,137.47,17.47]
[1726251092668,2.6474,137.53,137.47,21.10042]
[1726251093966,2.6474,137.53,137.5,3.6352]
[1726251094169,17.47,137.55,137.47,21.10042]
[1726251094666,17.47,137.55,137.51,3.635]
[1726251096071,17.47,137.55,137.5,3.6353]
[1726251096872,17.47,137.55,137.49,3.6356]
[1726251097067,17.47,137.55,137.47,21.10042]
[1726251097465,17.47,137.55,137.49,3.6355]
[1726251097777,17.47,137.55,137.47,21.10042]
[1726251098170,17.47,137.55,137.49,3.6356]
[1726251098767,17.47,137.55,137.5,3.6354]
[1726251099774,17.47,137.55,137.47,21.10042]
[1726251099775,17.47,137.53,137.48,3.6357]
[1726251100077,17.47,137.53,137.46,3.63042]
[1726251100769,17.47,137.52,137.48,3.6359]
[1726251102375,18.7732,137.52,137.48,3.6359]
[1726251103882,3.66906089,137.53,137.44,23.82502]
[1726251103883,3.66906089,137.53,137.46,17.47]
[1726251104077,3.66906089,137.53,137.46,21.10042]
[1726251104276,3.66906089,137.53,137.5,3.6354]
[1726251104871,3.66906089,137.53,137.49,3.6355]
[1726251105073,17.47,137.54,137.46,21.10042]
[1726251105473,3.56604518,137.53,137.48,3.6359]
[1726251106177,17.47,137.52,137.47,3.636]
[1726251106386,17.47,137.52,137.44,6.35502]
[1726251106877,21.04549428,137.52,137.44,6.35502]
[1726251107381,21.04549428,137.52,137.48,3.6358]
[1726251107982,17.47,137.52,137.48,3.6358]
[1726251108586,21.15569414,137.53,137.49,3.6356]
[1726251108787,17.47,137.53,137.49,3.6356]
[1726251109285,21.06622495,137.53,137.49,3.6356]
[1726251109585,17.47,137.53,137.49,3.6356]
[1726251110190,21.03448621,137.53,137.49,3.6356]
[1726251110488,17.47,137.53,137.49,3.6356]
[1726251111186,21.14468306,137.53,137.49,3.6356]
[1726251111483,21.14468306,137.53,137.45,3.63042]
[1726251111690,21.14468306,137.53,137.48,3.6358]
[1726251112679,22.49688306,137.53,137.48,3.6358]
[1726251113590,26.13148306,137.53,137.48,3.6358]
[1726251113890,22.49688306,137.53,137.48,3.6358]
[1726251114288,22.49688306,137.53,137.46,3.6364]
[1726251114289,17.47,137.52,137.46,3.6364]
[1726251114598,17.47,137.52,137.44,6.35502]
[1726251114793,17.47,137.52,137.47,3.6361]
[1726251115585,18.8364,137.52,137.47,3.6361]
[1726251116786,18.8364,137.52,137.48,3.6359]
[1726251117900,22.49688306,137.53,137.49,3.6355]
[1726251118188,17.47,137.55,137.46,17.47]
[1726251118390,17.47,137.55,137.48,17.47]
[1726251118590,17.47,137.55,137.52,3.6349]
[1726251119101,17.47,137.55,137.51,3.635]
[1726251119286,17.47,137.55,137.48,17.47]
[1726251119687,21.1042,137.55,137.47,3.63042]
[1726251120691,17.47,137.55,137.47,3.63042]
[1726251121284,17.47,137.55,137.5,3.6354]
[1726251121988,17.47,137.55,137.47,3.63042]
[1726251122192,17.47,137.53,137.45,3.63042]
[1726251122395,21.17105725,137.53,137.45,3.63042]
[1726251122590,17.47,137.52,137.47,3.6361]
[1726251122791,17.47,137.52,137.44,23.82502]
[1726251123385,21.06622891,137.52,137.44,23.82502]
[1726251123793,21.06622891,137.52,137.48,3.6358]
[1726251123997,17.47,137.53,137.44,20.1946]
[1726251124198,17.47,137.53,137.46,17.47]
[1726251124400,2.6567,137.58,137.47,17.47]
[1726251124700,17.47,137.57,137.48,1.379]
[1726251125104,17.47,137.55,137.48,1.379]
[1726251125993,17.47,137.55,137.5,3.6352]
[1726251126194,17.47,137.55,137.48,1.379]
[1726251126498,17.47,137.54,137.46,3.63042]
[1726251126802,17.47,137.54,137.49,3.6355]
[1726251127993,17.47,137.52,137.46,3.63042]
[1726251128202,17.47,137.5,137.44,2.7246]
[1726251128701,17.47,137.48,137.45,3.6366]
[1726251130503,17.47,137.48,137.46,3.6364]
[1726251131102,17.47,137.48,137.45,3.6366]
[1726251131303,17.47,137.47,137.38,7.274]
[1726251131497,5.12051458,137.52,137.39,6.31321]
[1726251131498,17.47,137.44,137.39,6.31321]
[1726251131698,17.47,137.44,137.39,2.7225]
[1726251132100,17.47,137.44,137.39,1.4117]
[1726251132302,17.47,137.42,137.37,3.59071]
[1726251132502,17.47,137.4,137.33,1.3805]
[1726251133007,17.47,137.4,137.33,4.97121]
[1726251133204,17.47,137.4,137.33,3.59071]
[1726251133405,17.47,137.38,137.31,3.59071]
[1726251134099,17.47,137.38,137.31,21.06071]
[1726251134812,17.47,137.38,137.35,3.6392]
[1726251135406,17.47,137.42,137.36,3.6391]
[1726251135605,1.3264,137.43,137.33,3.57508213]
[1726251135808,3.71487323,137.44,137.38,17.47]
[1726251136011,1.3913,137.47,137.4,17.47]
[1726251136306,1.3316,137.49,137.42,17.47]
[1726251136902,1.3316,137.49,137.42,21.06071]
[1726251137114,1.3316,137.49,137.44,3.6368]
[1726251137307,1.3316,137.49,137.41,22.48791]
[1726251137308,18.8016,137.49,137.41,22.48791]
[1726251138400,18.8016,137.49,137.45,3.6367]
[1726251138606,20.2951,137.51,137.42,17.47]
[1726251138811,20.2951,137.51,137.42,18.8293]
[1726251139111,20.2951,137.51,137.45,3.6366]
[1726251141518,17.47,137.49,137.44,3.6369]
[1726251141711,17.47,137.49,137.42,1.3593]
[1726251141907,17.47,137.49,137.41,1.4272]
[1726251142312,17.47,137.47,137.43,3.6372]
[1726251142511,17.47,137.47,137.41,1.4272]
[1726251142813,17.47,137.47,137.43,3.6372]
[1726251144629,17.47,137.47,137.44,3.6368]
[1726251145313,17.47,137.47,137.43,3.6371]
[1726251145514,17.47,137.45,137.39,17.47]
[1726251145713,17.47,137.45,137.39,21.06071]
[1726251145916,17.47,137.45,137.42,3.6373]
[1726251146415,17.47,137.45,137.41,3.6377]
[1726251146614,2.8251,137.51,137.41,3.6377]
[1726251146615,17.47,137.43,137.41,3.6377]
[1726251146815,17.47,137.43,137.38,6.30111]
[1726251147014,17.47,137.43,137.4,3.638]
[1726251147419,17.47,137.42,137.37,4.98131]
[1726251147618,17.47,137.42,137.37,1.3906]
[1726251148122,17.47,137.42,137.4,3.638]
[1726251148523,17.47,137.42,137.37,1.3906]
[1726251148713,17.47,137.42,137.39,3.6383]
[1726251150423,17.47,137.42,137.4,3.638]
[1726251150622,17.47,137.44,137.4,3.638]
[1726251151122,18.7885,137.45,137.37,22.45131]
[1726251151326,17.47,137.47,137.38,17.47]
[1726251151514,17.47,137.47,137.39,1.3129]
[1726251152209,17.47,137.47,137.43,3.6371]
[1726251152620,17.47,137.47,137.39,4.90361]
[1726251152818,17.47,137.47,137.43,3.6371]
[1726251153320,17.47,137.47,137.39,4.90361]
[1726251153823,17.47,137.47,137.43,3.6373]
[1726251154322,17.47,137.47,137.4,3.59071]
[1726251154523,17.47,137.47,137.42,3.6375]
[1726251154723,17.47,137.47,137.4,3.59071]
[1726251155221,17.47,137.45,137.42,3.6374]
[1726251156121,17.47,137.45,137.41,3.6377]
[1726251157224,17.47,137.45,137.42,3.6375]
[1726251160918,17.47,137.45,137.43,3.6372]
[1726251161525,4.2477,137.51,137.4,17.47]
[1726251161526,17.47,137.47,137.4,17.47]
[1726251161725,17.47,137.47,137.4,18.7825]
[1726251161921,17.47,137.47,137.4,22.37321]
[1726251162231,17.47,137.47,137.4,4.90321]
[1726251162526,17.47,137.47,137.44,3.6369]
[1726251163524,17.47,137.47,137.45,3.6366]
[1726251163721,17.47,137.49,137.41,3.59071]
[1726251163922,17.47,137.49,137.41,21.06071]
[1726251164423,17.47,137.49,137.46,3.6363]
[1726251165123,17.47,137.49,137.45,3.6366]
[1726251165325,17.47,137.49,137.43,3.59071]
[1726251165326,375.42867347,137.6,137.46,17.47]
[1726251165528,17.47,137.54,137.49,3.6355]
[1726251166629,17.47,137.54,137.48,3.59071]
[1726251168033,17.47,137.52,137.48,3.59071]
[1726251168330,17.47,137.51,137.47,1.4274]
[1726251168531,17.47,137.51,137.46,3.59071]
[1726251169127,17.47,137.51,137.49,3.6356]